Cogmind - Beta 16 @@@ ROGUE MODE // 2026.01.01 @ 16:52:36 Player: GermanMO Result: Destroyed by H-77 Assassin with High-powered Shotgun Performance ------------- Evolutions (6) 3000 Regions Visited (8) 1600 Robots Destroyed (39) 195 Value Destroyed (788) 788 Prototype IDs (3) 60 Alien Tech Used (0) 0 Bonus (158) 158 TOTAL SCORE: 5801 Bonus ------- Follower Combat Kills 158 Cogmind --------- Core Integrity 0/1150 Matter 300/300 Energy 100/100 System Corruption 9% Temperature Cool (0) Movement Core (100) Ox1 Location -4/Extension Parts ------- > --- POWER (2) -------- (None) > --- PROPULSION (6) --- (None) > --- UTILITY (9) ------ Advanced Signal Interpreter Hacking Suite > --- WEAPON (2) ------- Phasing Sabre > --- INVENTORY (5) ---- Improved EM Shotgun Peak State ------------ > --- POWER ------------ Micro Nuclear Core Micro Nuclear Core > --- PROPULSION ------- Flight Unit Improved Flight Unit Improved Flight Unit Cesium-ion Thruster Field Propulsion Array > --- UTILITY ---------- Advanced Weight Redist. System Visual Processing Unit Advanced Sensor Array Advanced Signal Interpreter Improved Terrain Scanner Advanced Terrain Scan Processor Hacking Suite > --- WEAPON ----------- Heavy Missile Launcher Hammer > --- INVENTORY -------- Improved EM Shotgun [Rating: 62] Favorites ----------- Power Micro Nuclear Core Engine Ion Engine Power Core Micro Nuclear Core Propulsion Improved Flight Unit Wheel Compact Wheel Flight Unit Improved Flight Unit Utility Improved Terrain Scanner Device Improved Terrain Scanner Storage Large Storage Unit Processor Visual Processing Unit Hackware Hacking Suite Weapon Hammer Energy Gun Improved EM Shotgun Ballistic Gun Assault Rifle Launcher Heavy Missile Launcher Special Weapon Mining Laser Impact Weapon Hammer Slashing Weapon Mining Claw Build | -11 -10 -9 -8 -7 -6 -5 -4 -4 ------- Run | Yrd Mat Mat Mat Fac Fac Fac Fac Ext Slots Evolved 12 | . . 2 2 2 2 2 2 . Power 1 | . . . . . 1 . . . Propulsion 4 | . . . 2 1 . 1 . . Utility 7 | . . 2 . 1 1 1 2 . Weapon . | . . . . . . . . . Parts Attached 52 | 7 2 8 8 9 6 2 1 9 Power 4 | 1 . . . 1 1 . . 1 Engine 1 | 1 . . . . . . . . Core 3 | . . . . 1 1 . . 1 Reactor . | . . . . . . . . . Propulsion 18 | 2 . 3 7 2 . 1 1 2 Treads . | . . . . . . . . . Leg . | . . . . . . . . . Wheel 5 | 2 . 2 . . . . . 1 Hover . | . . . . . . . . . Flight 13 | . . 1 7 2 . 1 1 1 Utility 19 | 2 1 3 . 5 5 1 . 2 Device 11 | 1 . 2 . 4 2 . . 2 Storage 2 | 1 1 . . . . . . . Processor 5 | . . 1 . 1 3 . . . Hackware 1 | . . . . . . 1 . . Protection . | . . . . . . . . . Artifact . | . . . . . . . . . Weapon 11 | 2 1 2 1 1 . . . 4 Energy Gun 3 | . . 2 . . . . . 1 Energy Cannon . | . . . . . . . . . Ballistic Gun 2 | 2 . . . . . . . . Ballistic Cannon . | . . . . . . . . . Launcher 1 | . . . . . . . . 1 Special Weapon 1 | . 1 . . . . . . . Impact Weapon 1 | . . . . 1 . . . . Slashing Weapon 3 | . . . 1 . . . . 2 Piercing Weapon . | . . . . . . . . . Special Melee Weapon . | . . . . . . . . . Unidentified Prototypes 3 | . . 2 . . 1 . . . Parts Lost 33 | . 1 . 11 . . . . 21 Power 4 | . . . 1 . . . . 3 Propulsion 14 | . . . 6 . . . . 8 Utility 9 | . . . 2 . . . . 7 Weapon 6 | . 1 . 2 . . . . 3 Highest Loss Streak 9 | . 1 . 9 . . . . 6 To Critical Strikes . | . . . . . . . . . Average Backups 3 | 1 7 12 9 4 4 3 3 1 Power . | . . . . . . . . . Propulsion . | . 2 5 3 . 1 . . . Utility 1 | . 4 5 3 2 2 1 1 . Weapon 1 | . . 1 2 1 1 2 2 1 Tool/Special . | . . . . . . . . . Unused Backups 9 | . . 2 3 2 1 . 1 . Power . | . . . . . . . . . Propulsion 1 | . . . . 1 . . . . Utility 6 | . . 1 2 1 1 . 1 . Weapon 2 | . . 1 1 . . . . . Tool/Special . | . . . . . . . . . Average Slot Usage (%) 83 | . 99 90 60 76 92 93 83 78 Engine 1 | . 14 11 2 . . . . . Core 7 | . . . . 6 12 11 10 9 Wheel 3 | . 28 22 5 . . . . . Flight 22 | . . . 15 28 33 34 30 24 Device 15 | . 14 21 12 19 20 17 15 13 Storage 2 | . 14 11 4 . . . . . Processor 12 | . . 2 9 13 19 17 15 14 Hackware 3 | . . . . . . 4 5 5 Energy Gun 1 | . . 18 6 . . . . . Ballistic Gun 2 | . 27 3 . . . . . . Launcher 2 | . . . . . . . . 4 Impact Weapon 4 | . . . . 5 6 5 5 4 Peak Build Rating 62 | 9 10 20 20 31 46 49 58 62 Average Rating 42 | 7 9 15 13 25 40 48 49 57 On Entrance 24 | . 9 10 20 10 31 43 49 50 Avg Prop Armor Cover (%) 4 | . . . 5 5 . . . 4 Naked Turns . | . . . . . . . . . Heaviest Build 33 | 15 30 33 33 11 17 17 17 24 Greatest Support 47 | 32 32 32 24 25 27 33 33 47 Greatest Overweight (x) 7 | . . 2 7 . . . . 1 Average Overweight (x) . | . . . . . . . . . Largest Inventory Capacity 15 | 8 15 15 15 5 5 5 5 5 Average Capacity 6 | 6 14 15 10 5 5 5 5 5 Most Carried 15 | 4 8 15 15 5 5 5 5 5 Average Carried 3 | 1 7 12 8 4 4 3 4 1 Final Capacity 15 | 8 15 15 5 5 5 5 5 5 Final Carried 15 | 4 8 15 3 5 5 3 5 1 Class Distribution -------------------- 54% | Scientist-Scout 26% | Mutant 19% | Scout Dominant Class ---------------- Mutant | -10/Materials Mutant | -9/Materials Mutant | -8/Materials Scout | -7/Factory Scout | -6/Factory Scientist-Scout | -5/Factory Scientist-Scout | -4/Factory Scientist-Scout | -4/Extension Resources | -11 -10 -9 -8 -7 -6 -5 -4 -4 ----------- Run | Yrd Mat Mat Mat Fac Fac Fac Fac Ext Matter Collected 1187 | 354 107 187 . 135 70 50 . 284 Remotely . | . . . . . . . . . Salvage Created 1833 | 216 233 471 . 37 119 . . 757 Parts 93 | 15 18 30 . . 4 . . 26 Haulers Intercepted 10 | . 2 5 . 1 1 . . 1 Recyclers Shooed . | . . . . . . . . . Parts Field Recycled . | . . . . . . . . . Retrieved Matter . | . . . . . . . . . Parts Self-Destructed . | . . . . . . . . . Prevented . | . . . . . . . . . Parts Restored . | . . . . . . . . . Kills | -11 -10 -9 -8 -7 -6 -5 -4 -4 ------- Run | Yrd Mat Mat Mat Fac Fac Fac Fac Ext Combat Hostiles Destroyed 19 | . 5 8 . . . . . 6 Melee 4 | . . . . . . . . 4 Guns 13 | . 5 8 . . . . . . Classes Destroyed 9 | 3 3 1 . . . . . 2 Worker 2 | 2 . . . . . . . . Tunneler 4 | 4 . . . . . . . . Hauler 10 | . 2 5 . 1 1 . . 1 Recycler 3 | 1 . . . . . . . 2 Watcher 1 | . . . . . . . . 1 Swarmer 12 | . 3 7 . . . . . 2 Grunt 2 | . 2 . . . . . . . Sentry 3 | . . 1 . . . . . 2 Hunter 2 | . . . . . . . . 2 Best Kill Streak 4 | 4 3 4 . 1 1 . . 4 Combat Bots Only 4 | . 3 4 . . . . . 2 Max Kills in Single Turn 2 | 1 2 2 . 1 1 . . 1 Gunslinging 1 | . . 1 . . . . . . Exploded . | . . . . . . . . . Melee 1 | . . . . . . . . 1 Uniques/NPCs Destroyed . | . . . . . . . . . Combat | -11 -10 -9 -8 -7 -6 -5 -4 -4 -------- Run | Yrd Mat Mat Mat Fac Fac Fac Fac Ext Hostile Shots Fired 319 | . 30 18 111 . . 2 . 158 Missed 114 | . 5 10 45 . . . . 54 Hits 205 | . 25 8 66 . . 2 . 104 Projectile 205 | . 25 8 66 . . 2 . 104 Critical Strikes 10 | . 1 1 2 . . 1 . 5 Damage Taken 3815 | . 308 117 1033 . . 50 . 2307 Core 1701 | . 48 37 462 . . . . 1154 Absorbed by Shields 128 | . . . . . . . . 128 Core Remaining (%) 83 | 100 80 90 16 100 100 100 . . Volleys Fired 86 | 14 29 22 2 . . . . 19 Largest 2 | 2 2 2 2 . . . . 1 Hottest 100 | 40 100 90 90 . . . . 45 Shots Fired 148 | 28 53 44 4 . . . . 19 Gun 133 | 28 51 44 4 . . . . 6 Cannon . | . . . . . . . . . Launcher 13 | . . . . . . . . 13 Special 2 | . 2 . . . . . . . Kinetic 91 | 28 51 12 . . . . . . Thermal 2 | . 2 . . . . . . . Explosive 13 | . . . . . . . . 13 Electromagnetic 42 | . . 32 4 . . . . 6 Robot Hit Streak 15 | 12 15 9 3 . . . . 7 Robot Miss Streak 4 | 2 4 2 2 . . . . 3 Penetration Max . | . . . . . . . . . Secondary Targets 2 | . 1 1 . . . . . . Max Gunslinging Chain 1 | . 1 1 . . . . . . Shots Hit Robots 130 | 20 35 35 3 4 1 1 . 31 Core Hits 57 | 7 13 20 1 . 1 . . 15 Critical Kills 1 | 1 . . . . . . . . Critical Parts Destroyed 5 | 1 . . . 1 . . . 3 Critical Strikes 7 | 2 . . . 1 . . . 4 Destroy 2 | 2 . . . . . . . . Smash 4 | . . . . 1 . . . 3 Sever 1 | . . . . . . . . 1 Melee Attacks 331 | . . . . 47 27 29 12 216 Impact 303 | . . . . 39 27 29 12 196 Slashing 28 | . . . . 8 . . . 20 Piercing . | . . . . . . . . . Sneak Attacks 9 | . . . . 2 1 . . 6 Combat Hostiles 2 | . . . . . . . . 2 Follow-up Attacks 2 | . . . . . . . . 2 Damage Inflicted 2688 | 239 465 627 53 157 64 21 . 1062 Guns 1430 | 239 465 578 53 . . . . 95 Cannons . | . . . . . . . . . Explosions 65 | . . 49 . . . . . 16 Melee 1183 | . . . . 157 64 21 . 941 Ramming 10 | . . . . . . . . 10 Kinetic 805 | 239 465 101 . . . . . . Thermal 49 | . . 49 . . . . . . Explosive 16 | . . . . . . . . 16 Electromagnetic 625 | . . 477 53 . . . . 95 Impact 593 | . . . . 157 64 21 . 351 Slashing 590 | . . . . . . . . 590 Piercing . | . . . . . . . . . Highest Corruption 9 | . . . . . . . . 9 Average Corruption 8 | . . . . . . . . 8 Corruption Purged . | . . . . . . . . . Corruption Blocked . | . . . . . . . . . Effects 8 | . . . . . . . . 8 Message Errors 3 | . . . . . . . . 3 Matter Fused 2 | . . . . . . . . 2 Energy Discharges 1 | . . . . . . . . 1 Parts Rejected 1 | . . . . . . . . 1 Alerts 1 | . . . . . . . . 1 Overload Shots . | . . . . . . . . . Overflow Damage 267 | . . . . 90 . . . 177 Projectiles . | . . . . . . . . . Explosions 33 | . . . . . . . . 33 Melee 234 | . . . . 90 . . . 144 Knockbacks 1 | . . . . 1 . . . . Impact 1 | . . . . 1 . . . . Kinetic . | . . . . . . . . . Secondary . | . . . . . . . . . Self-Inflicted Damage 101 | . . 34 . . . . . 67 Shots 5 | . . 2 . . . . . 3 Rammed 4 | . . . 2 . . . . 2 Targets Rammed 4 | . . . 2 . . . . 2 Kicked . | . . . . . . . . . Crushed . | . . . . . . . . . Highest Temperature 101 | . 22 75 37 . 25 98 101 28 Average Temperature 22 | . 10 28 14 . 8 28 36 12 Received Heat Transfer 1071 | . 177 36 495 . . 27 . 336 Siege Activations . | . . . . . . . . . Martial Activations . | . . . . . . . . . Shielding Activations . | . . . . . . . . . Robots Disrupted . | . . . . . . . . . Combat Hostiles . | . . . . . . . . . Robots Corrupted 5 | . . . . 1 . . . 4 Combat Hostiles 2 | . . . . . . . . 2 Parts Fried 11 | . . 2 . 3 . . . 6 Impact Corruptions 9 | . . . . 4 . . . 5 Robots Melted . | . . . . . . . . . Combat Hostiles . | . . . . . . . . . Parts Melted . | . . . . . . . . . Heat Transferred 100 | . . 100 . . . . . . Parts Sabotaged . | . . . . . . . . . Parts Stolen . | . . . . . . . . . Parts Stripped . | . . . . . . . . . Power Chain Reactions 2 | . . 2 . . . . . . Alert | -11 -10 -9 -8 -7 -6 -5 -4 -4 ------- Run | Yrd Mat Mat Mat Fac Fac Fac Fac Ext Maximum Alert Level 1 | . . . 1 . . . . 1 Low Security (%) 99 | 100 100 100 90 100 100 100 100 99 Level 1 . | . . . 9 . . . . . Level 2 . | . . . . . . . . . Level 3 . | . . . . . . . . . Level 4 . | . . . . . . . . . Level 5 . | . . . . . . . . . High Security . | . . . . . . . . . Max Security . | . . . . . . . . . Peak Influence 248 | 10 94 162 245 106 7 14 17 248 Initial 106 | . 3 . 38 106 . . . . Average 20 | 2 36 70 52 30 . . 2 14 Influence Increases 1566 | 35 153 274 321 81 28 38 35 601 Destroy 0b10 Robot/C 480 | . 100 160 . . . . . 220 Destroy 0b10 Robot/NC 100 | 35 10 25 . 5 5 . . 20 Destroy Leader 100 | . 24 40 . 2 2 . . 32 Allied During Kill 24 | . . . . . . . . 24 Successful Hack 34 | . . . 6 10 4 10 4 . Disable Machine 120 | . 15 15 . 30 . . . 60 Destroy Structure 198 | . 4 4 . 19 17 28 16 110 Partial Spotted 60 | . . 30 . 15 . . 15 . Lose Combat Pursuer 450 | . . . 315 . . . . 135 Influence Decreases 1397 | 30 155 185 178 316 28 36 35 434 Entered New Map 192 | . 2 3 54 129 . . 2 2 Time Decay 857 | 30 143 182 60 187 28 36 33 158 Lost Part 268 | . 10 . 64 . . . . 194 Lost Ally 80 | . . . . . . . . 80 Squads Dispatched 14 | . . . 6 2 2 1 . 3 Investigation 4 | . . . 2 . . . . 2 Extermination 5 | . . . . 2 2 1 . . Reinforcement 3 | . . . 2 . . . . 1 Assault . | . . . . . . . . . Garrison 2 | . . . 2 . . . . . Intercept . | . . . . . . . . . Searches Triggered . | . . . . . . . . . Construction Impeded . | . . . . . . . . . Haulers Reinforced . | . . . . . . . . . Active Scanning Responses . | . . . . . . . . . Cargo Convoy Interrupts . | . . . . . . . . . Stealth | -11 -10 -9 -8 -7 -6 -5 -4 -4 --------- Run | Yrd Mat Mat Mat Fac Fac Fac Fac Ext Distress Signals 5 | . 2 . . . . . 1 2 Communications Jammed . | . . . . . . . . . Distress Signals . | . . . . . . . . . Times Spotted 72 | . 9 10 22 . . 1 1 29 Peak Tracking Total 14 | . 5 4 13 . . 1 2 14 Tactical Retreats 9 | . . . 6 . . . . 3 Traps | -11 -10 -9 -8 -7 -6 -5 -4 -4 ------- Run | Yrd Mat Mat Mat Fac Fac Fac Fac Ext Traps Triggered 7 | . . . 1 . . 2 . 4 Indirectly . | . . . . . . . . . Trap Hack Attempts . | . . . . . . . . . Triggered . | . . . . . . . . . Disarmed . | . . . . . . . . . Reprogrammed . | . . . . . . . . . Reused . | . . . . . . . . . Traps Extracted . | . . . . . . . . . Installed . | . . . . . . . . . Triggered . | . . . . . . . . . Machines | -11 -10 -9 -8 -7 -6 -5 -4 -4 ---------- Run | Yrd Mat Mat Mat Fac Fac Fac Fac Ext Machines Disabled 8 | . 1 1 . 2 . . . 4 Max in Single Turn 1 | . 1 1 . 1 . . . 1 Garrison Access 2 | . . . . . . 1 1 . Machines Repaired . | . . . . . . . . . Machines Dismantled . | . . . . . . . . . Machines Sabotaged . | . . . . . . . . . Overloaded Fab Kills . | . . . . . . . . . Hacking | -11 -10 -9 -8 -7 -6 -5 -4 -4 --------- Run | Yrd Mat Mat Mat Fac Fac Fac Fac Ext Machines Accessed 24 | . . 2 2 6 4 3 3 4 Terminals 14 | . . . 1 4 3 1 1 4 Fabricators . | . . . . . . . . . Repair Stations . | . . . . . . . . . Recycling Units . | . . . . . . . . . Scanalyzers 6 | . . 2 . 1 1 1 1 . Garrison Access 4 | . . . 1 1 . 1 1 . Total Hacks 45 | . . 3 6 12 5 6 4 9 Successful 22 | . . 3 2 4 3 5 3 2 Failed 23 | . . . 4 8 2 1 1 7 Catastrophic 3 | . . . 2 . . . . 1 Database Lockouts . | . . . . . . . . . Manual 10 | . . . 3 2 3 2 . . Terminals 24 | . . . 3 6 3 1 2 9 Fabricators . | . . . . . . . . . Repair Stations . | . . . . . . . . . Recycling Units . | . . . . . . . . . Scanalyzers 11 | . . 3 . 2 2 3 1 . Garrison Access 10 | . . . 3 4 . 2 1 . Terminal Hacks 7 | . . . 1 2 . 1 1 2 Record 1 | . . . . . . 1 . . Open Door 2 | . . . . . . . . 2 Open DSF 3 | . . . . 2 . . 1 . Recall Investigation 1 | . . . 1 . . . . . Fabricator Hacks . | . . . . . . . . . Repair Station Hacks . | . . . . . . . . . Recycling Unit Hacks . | . . . . . . . . . Scanalyzer 8 | . . 3 . 1 . 3 1 . Retrieve Study 8 | . . 3 . 1 . 3 1 . Garrison Access Hacks 3 | . . . 1 . . 1 1 . Seal Access 2 | . . . . . . 1 1 . Coupler Status 1 | . . . 1 . . . . . Unauthorized Hacks 4 | . . . . 1 3 . . . Terminals 4 | . . . . 1 3 . . . Botnet 4 | . . . . 1 3 . . . Fabricators . | . . . . . . . . . Repair Stations . | . . . . . . . . . Recycling Units . | . . . . . . . . . Scanalyzers . | . . . . . . . . . Garrison Access . | . . . . . . . . . Data Cores Recovered . | . . . . . . . . . Used . | . . . . . . . . . Hacking Detections 16 | . . 1 2 4 3 2 . 4 Full Trace Events 4 | . . . 2 . . . . 2 Feedback Events . | . . . . . . . . . Feedback Blocked . | . . . . . . . . . Robot Schematics Acquired . | . . . . . . . . . Robots Built . | . . . . . . . . . Authchips . | . . . . . . . . . Time . | . . . . . . . . . Total Robot Build Rating . | . . . . . . . . . Part Schematics Acquired . | . . . . . . . . . Parts Built . | . . . . . . . . . Authchips . | . . . . . . . . . Time . | . . . . . . . . . Total Part Build Rating . | . . . . . . . . . Part Studies Acquired 8 | . . 3 . 1 . 3 1 . Parts Repaired . | . . . . . . . . . Time . | . . . . . . . . . Parts Recycled . | . . . . . . . . . Recycled Matter . | . . . . . . . . . Retrieved Matter . | . . . . . . . . . Retrieved Components . | . . . . . . . . . Parts Scanalyzed . | . . . . . . . . . Part Schematics Acquired . | . . . . . . . . . Parts Damaged . | . . . . . . . . . Bothacking | -11 -10 -9 -8 -7 -6 -5 -4 -4 ------------ Run | Yrd Mat Mat Mat Fac Fac Fac Fac Ext Used RIF Installer . | . . . . . . . . . Robots Hacked . | . . . . . . . . . Non-combat . | . . . . . . . . . Combat . | . . . . . . . . . Robot Hacks Applied . | . . . . . . . . . Relay Couplers Released . | . . . . . . . . . Fabnet Peak Effective % . | . . . . . . . . . Robots Rewired . | . . . . . . . . . Allies Hacked . | . . . . . . . . . Hacks Repelled . | . . . . . . . . . Allies | -11 -10 -9 -8 -7 -6 -5 -4 -4 -------- Run | Yrd Mat Mat Mat Fac Fac Fac Fac Ext Total Allies 4 | . . . . . . . . 4 Largest Group 2 | . . . . . . . . 2 Highest-Rated Group 84 | . . . . . . . . 84 Highest-Rated Ally 46 | . . . . . . . . 46 Total Orders . | . . . . . . . . . Ally Attacks 22 | . . . . . . . . 22 Total Damage 490 | . . . . . . . . 490 Kills 5 | . . . . . . . . 5 Allies Corrupted . | . . . . . . . . . Allies Melted . | . . . . . . . . . Intel | -11 -10 -9 -8 -7 -6 -5 -4 -4 ------- Run | Yrd Mat Mat Mat Fac Fac Fac Fac Ext Active Infowar (turns) 5840 | 101 389 495 188 658 576 487 218 2728 Optics 4956 | . . 111 188 658 576 487 218 2718 Sensors 4384 | . . . . 525 576 487 218 2578 Terrain 5584 | 101 389 495 51 542 573 487 218 2728 Structural 2452 | . . 490 93 518 576 487 218 70 Robot Analysis Total . | . . . . . . . . . Derelict Logs Recovered . | . . . . . . . . . Drone Launches . | . . . . . . . . . Drone Recoveries . | . . . . . . . . . Exploration | -11 -10 -9 -8 -7 -6 -5 -4 -4 ------------- Run | Yrd Mat Mat Mat Fac Fac Fac Fac Ext Turns Passed 5996 | 133 389 495 188 658 576 487 218 2852 Spaces Moved 5712 | 66 254 333 243 1315 848 613 636 1404 Core 23 | 1 . . 1 . . . . 21 Treads . | . . . . . . . . . Legs . | . . . . . . . . . Wheels 700 | 65 254 333 48 . . . . . Hover . | . . . . . . . . . Flight 4989 | . . . 194 1315 848 613 636 1383 Fastest Speed 22 | 50 100 100 29 26 26 22 22 22 Average Speed 37 | 99 100 109 52 31 26 22 22 28 Slowest Speed 400 | 100 100 130 400 34 29 29 26 100 Overloaded Moves . | . . . . . . . . . Propulsion Burnouts . | . . . . . . . . . Robots Hopped 48 | . . . 13 5 5 2 4 19 Potential Cave-ins 11 | . . . . . . . . 11 Cave-ins Triggered 2 | . . . . . . . . 2 Exploration Rate (%) 30 | 3 46 37 35 41 26 18 12 52 Regions Visited 8 Branch Regions 1 Pre-discovered Areas . | . . . . . . . . . Known Exits Taken 4 | . . . . 1 1 1 1 . Unknown Exits Taken 4 | 1 1 1 1 . . . . . Scrap Searched . | . . . . . . . . . Spaces Dug 212 | . 2 . . 19 17 14 8 152 Terrain Destroyed 268 | . 2 3 . 19 17 14 8 205 Melee 61 | . . . . 19 17 14 8 3 Projectile 2 | . 2 . . . . . . . AOE 205 | . . 3 . . . . . 202 Terrain Rammed . | . . . . . . . . . Walls Destroyed . | . . . . . . . . . Machines Disabled . | . . . . . . . . . Actions | -11 -10 -9 -8 -7 -6 -5 -4 -4 --------- Run | Yrd Mat Mat Mat Fac Fac Fac Fac Ext Total 8784 | 101 331 422 285 1461 1150 909 689 3436 Wait 2554 | 11 40 38 42 84 266 260 36 1777 Move 5611 | 65 253 332 219 1304 837 608 627 1366 Hop 43 | . . . 10 5 5 2 4 17 Pick Up 30 | 4 5 10 . 7 2 . 2 . Fast Attach 40 | 7 1 7 1 7 6 3 2 6 Attach 19 | . 1 2 8 1 1 2 1 3 Detach 7 | . . 3 . . 2 . 2 . Swap 5 | . 1 . . 1 . . . 3 Drop 22 | . 1 8 1 5 4 . 3 . Fire 86 | 14 29 22 2 . . . . 19 Melee 328 | . . . . 47 27 29 12 213 Ram 4 | . . . 2 . . . . 2 Kick . | . . . . . . . . . Crush . | . . . . . . . . . Escape Stasis 35 | . . . . . . 5 . 30 Rewire . | . . . . . . . . . Trap . | . . . . . . . . . Miscellaneous . | . . . . . . . . . Route ------- -11/Scrapyard -10/Materials (discovered 3 exits: *Mat x2 / [*Min]) -9/Materials (discovered 2 exits: *Mat x2) -8/Materials -7/Factory (discovered 4 exits: *Fac / *Low / DSF / DSF) -6/Factory -5/Factory -4/Factory (discovered 2 exits: *Ext / DSF) -4/Extension History --------- Turn | Location | Event 6 | -11/Scrapyard | Discovered new exit (range 16) 134 | -11/Scrapyard | Entered Materials 264 | -10/Materials | Discovered new exit (range 15) 331 | -10/Materials | Build established: Mutant 453 | -10/Materials | Discovered new exit (range 16) 507 | -10/Materials | Discovered new exit (range 10) 523 | -10/Materials | Entered another Materials area 523 | -9/Materials | Evolved 2 slots: Utility x2 815 | -9/Materials | Discovered new exit (range 7) 1007 | -9/Materials | Discovered new exit (range 8) 1018 | -9/Materials | Entered another Materials area 1018 | -8/Materials | Evolved 2 slots: Propulsion x2 1054 | -8/Materials | Garrison activated, responded to threat 1105 | -8/Materials | Core integrity fell below 50% 1135 | -8/Materials | Core integrity fell below 20% 1160 | -8/Materials | Lost 9 parts (1p5n1u2w) 1192 | -8/Materials | Discovered new exit (range 16) 1206 | -8/Materials | Entered Factory 1206 | -7/Factory | Evolved 2 slots: Propulsion x1, Utility x1 1345 | -7/Factory | Identified exit to DSF 1410 | -7/Factory | Identified exit to DSF 1434 | -7/Factory | Discovered new exit (range 8) 1436 | -7/Factory | Identified exit to Lower Caves 1641 | -7/Factory | Build established: Scout 1845 | -7/Factory | Discovered new exit (range 18) 1850 | -7/Factory | Identified exit to Factory 1864 | -7/Factory | Entered another Factory area 1864 | -6/Factory | Evolved 2 slots: Power x1, Utility x1 1957 | -6/Factory | Discovered new exit (range 5) 1960 | -6/Factory | Identified exit to Factory 2440 | -6/Factory | Entered another Factory area 2440 | -5/Factory | Evolved 2 slots: Propulsion x1, Utility x1 2735 | -5/Factory | Build established: Scientist-Scout 2840 | -5/Factory | Discovered new exit (range 13) 2924 | -5/Factory | Identified exit to Factory 2927 | -5/Factory | Entered another Factory area 2927 | -4/Factory | Evolved 2 slots: Utility x2 3015 | -4/Factory | Identified exit to DSF 3023 | -4/Factory | Discovered new exit (range 6) 3023 | -4/Factory | Identified exit to Extension 3145 | -4/Factory | Entered Extension 3266 | -4/Extension | Lost 3 parts (2n1u) 4660 | -4/Extension | Disrupted transfer network 5606 | -4/Extension | Spotted B-86 Titan 5674 | -4/Extension | Crushed by falling debris 5675 | -4/Extension | Crushed by falling debris 5706 | -4/Extension | Lost 4 parts (1p2u1w) 5754 | -4/Extension | Lost 4 parts (1p2n1u) 5890 | -4/Extension | Rescued a captive Derelict 5890 | -4/Extension | Rescued a captive Derelict 5904 | -4/Extension | Lost 6 parts (1p1n3u1w) 5947 | -4/Extension | Core integrity fell below 50% 5972 | -4/Extension | Rescued a captive Derelict 5975 | -4/Extension | Rescued a captive Derelict 5977 | -4/Extension | Lost 4 parts (3n1w) 5990 | -4/Extension | Core integrity fell below 20% 5996 | -4/Extension | Spotted B-86 Titan 5997 | -4/Extension | Destroyed by H-77 Assassin with High-powered Shotgun Last Messages --------------- 05977_ Door Terminal disabled. 05982_ System corrupted: IFF burst signal emitted. 05982_ G-67 Veteran destroyed. 05982_ Slug penetrates 4E-IRC(g). 05983_ Slug penetrates C8-5QP(l). 05983_ Slug penetrates Reinforced Barrier. 05983_ Slug penetrates C8-5QP(l). 05986_ C8-5QP(l) destroyed. 05986_ Penetrated by Slug. 05987_ 4E-IRC(g) destroyed. 05987_ Slug penetrates Reinforced Barrier. 05989_ Slug penetrates Wall. 05989_ Penetrated by Slug. 05989_ Slammed into H-77 Assassin. 05990_ Penetrated by Slug. 05991_ Slug penetrates R-10 Processor. 05992_ Slug penetrates Wall. 05993_ Penetrated by Slug. 05996_ Slammed into R-10 Processor. Map ----- +----------------------------------------------------+ | ########%####????????#"##????????????????????????? | | ??????##=##??????????# T#????????????????????????? | | ?#?#### ############ ####??????????????????????? | | ???# #??????????????????????? | | ??## ## !############ #??????????????????????? | | #### ######??????????# #??????????????????????? | | #???????????????# #??????????????????????? | | ## ###???????###?????# % "#??????????????????????? | | # T#????####T####### "%#??????????????????????? | | ##""##?????#*% *%[=[[ "#??????????????????????? | | ???????????#[%%####%* #??????????????????????? | | ???#???????### #??#[= #??????????????????????? | | ??#?#????????###??# #??????????????????????? | | ??????????????????# ^ #??????????????????????? | | ??????????????????####### #??????????????????????? | | ??#?????????????????### #R#??????????????????????? | | ???##???????????????# *=#h#??????????????????????? | | ##??##???????#??????# =[%Y#??????????????????????? | | #??###?####?######??###%#h#??????????????????????? | | #??####?#########?###?###%#??????????????????????? | | #??##############?##????#%#??????????????????????? | | ?##?####?####?#####?##??# #??????????????????????? | | ####?#######?######?##?## #??????????????????????? | | ?################???##### ### ## ###?????????????? | | ################?###?##"" "" ""?????????????? | | ########?##?#####?##?## "@" " ????????????? | | ####################### R ??????????? | | ###########?########### g ??????????? | | ####################### ???????????? | | ???????????? | | g ????????????? | | g ???????????? | | ??????????? | | ???????????? | | ####################### BB BB ???????????? | | ####################### BB BB ????????????? | | ##########?#?######??## ????????????? | | #######?##?###?######?# ??????????????? | | #?#########??##?####### ????????????????? | | #####??##??######?###?######T#???????????????????? | | ################?###?###?#?#?????????????????????? | | ###################?####?#???????????????????????? | | | | | | | | | | | | | | | | | +----------------------------------------------------+ Best States ------------- Heat Dissipation 43 Energy Generation 27 Energy Capacity 250 Matter Stores 300 Matter Capacity 300 Sight Range 18 Robot Scan Range 16 Terrain Scan Range 16 Terrain Scan Density 210 Additional Mass Support 9 Evasion (%) 65 Targeting Accuracy 6 Offensive Hacking 10 Item Schematics ----------------- None Robot Schematics ------------------ None Fabricated ------------ Nothing Repaired ---------- Nothing Studied --------- Flight Unit | -9/Materials | Hacked VTOL Module | -9/Materials | Hacked Rocket Launcher | -9/Materials | Hacked Cesium-ion Thruster | -7/Factory | Hacked Mic. Nuclear Core | -5/Factory | Hacked Hammer | -5/Factory | Hacked Hvy. Missile Launcher | -5/Factory | Hacked Field Propulsion Array | -4/Factory | Hacked Alien Tech Used ----------------- None Achievements -------------- None Challenges ------------ None Game ------ Seed ShockExplosiveAutocannon Manual? 0 Play Time 02:33:23 Cumulative 29.6 hours Start 2025.12.30 @ 11:15:59 End 2026.01.01 @ 16:52:36 Sessions 5 Manual Loads 0 Difficulty Rogue Special Mode None Game No. 37 Rogue 18 Adventurer 0 Explorer 19 Win Type - Total 0 Types 0/0/0/0/0/0/0/0/0/0 Lore% 22 Gallery% 24 Achievement% 20 Wizard Run 0 Options --------- Layout 1 ASCII 0 Keyboard 1 Movement Arrows Keybinds 0 Fullscreen 1 Font 24/Smallcaps Map View 50x35 Zoom Use 0% Tactical HUD 1 Map Filters NONE Filters NONE Steam 1 RUN: c38766ee-6650-4cf1-a9e8-aa2886b086b8